bitfinex-derivatives/quotes_SOLF0:USTF0_20220106
["timestamp","ask_amount","ask_price","bid_price","bid_amount"]
[1641458273815,8.73958215,149.06,148.99,27.66479]
[1641458274013,4.73958215,149.06,148.99,27.66479]
[1641458274213,8.73958215,149.06,148.99,27.66479]
[1641458274414,4.73958215,149.06,148.99,27.66479]
[1641458274613,4.73958215,149.06,148.99,38.85948158]
[1641458275714,4.73958215,149.06,148.99,27.66479]
[1641458276118,4.73958215,149.06,148.99,31.66479]
[1641458276919,4.73958215,149.06,148.99,27.66479]
[1641458277321,4.73958215,149.06,148.99,38.85699097]
[1641458278724,4.73958215,149.07,148.99,38.85699097]
[1641458279125,8.73958215,149.07,148.99,38.85699097]
[1641458279324,4.73958215,149.07,148.99,38.85699097]
[1641458279525,4.0,149.06,148.99,38.85699097]
[1641458279724,14.28358215,149.06,148.99,38.85699097]
[1641458280125,10.28358215,149.06,148.99,38.85699097]
[1641458280925,4.73958215,149.04,148.99,27.66479]
[1641458283835,4.0,149.02,148.92,60.64725116]
[1641458284035,4.0,149.01,149.0,6.79100129]
[1641458284236,9.811,149.02,149.0,6.79100129]
[1641458284438,5.811,149.02,149.0,6.79100129]
[1641458285037,4.73958215,149.01,148.97,27.66479]
[1641458286339,4.73958215,149.03,148.98,6.79100129]
[1641458286736,4.0,149.01,148.98,6.79100129]
[1641458287138,4.73958215,149.03,148.98,6.79100129]
[1641458287540,4.0,149.0,148.95,6.79100129]
[1641458287738,4.0,148.99,148.95,6.79100129]
[1641458288039,17.55803287,149.0,148.95,6.79100129]
[1641458288439,4.0,148.99,148.95,6.79100129]
[1641458288740,4.0,148.98,148.95,6.79100129]
[1641458289140,10.70893294,148.98,148.95,6.79100129]
[1641458289438,10.70893294,148.98,148.91,6.79100129]
[1641458289839,4.0,148.98,148.91,6.79100129]
[1641458290241,10.7087079,148.98,148.91,6.79100129]
[1641458290540,4.0,148.97,148.91,6.79100129]
[1641458290739,4.0,148.96,148.91,6.79100129]
[1641458290941,38.63779,148.97,148.91,6.79100129]
[1641458291139,34.63779,148.97,148.91,6.79100129]
[1641458291640,38.63779,148.97,148.91,6.79100129]
[1641458292241,4.0,148.96,148.91,6.79100129]
[1641458292441,4.0,148.96,148.89,17.98462826]
[1641458293541,8.73958215,148.96,148.89,6.79100129]
[1641458294243,4.0,148.94,148.89,6.79100129]
[1641458294444,4.0,148.93,148.89,6.79100129]
[1641458295042,27.66479,148.92,148.89,6.79100129]
[1641458295646,32.24979,148.92,148.79,64.8557]
[1641458295843,4.0,148.9,148.87,6.79142169]
[1641458296044,4.0,148.88,148.81,56.85724812]
[1641458296244,4.0,148.86,148.81,4.812e-05]
[1641458296444,6.71591672,148.82,148.77,94.73919514]
[1641458296644,13.09291672,148.82,148.77,94.73919514]
[1641458297046,27.66479,148.8,148.77,94.73919514]
[1641458297247,27.66479,148.8,148.77,92.59919514]
[1641458298047,6.7172701,148.79,148.73,17.99122061]
[1641458298248,6.259,148.79,148.73,17.99122061]
[1641458298644,10.259,148.79,148.73,17.99122061]
[1641458298844,6.717947,148.78,148.73,14.27122061]
[1641458299044,27.66479,148.74,148.73,14.27122061]
[1641458299245,33.89179,148.74,148.73,14.27122061]
[1641458299646,6.227,148.74,148.73,14.27122061]
[1641458299847,6.227,148.74,148.7,17.94331904]
[1641458301147,27.66479,148.73,148.7,17.94331904]
[1641458301347,27.66479,148.73,148.7,11.15122061]
[1641458301548,6.7215594,148.71,148.68,17.94331904]
[1641458301748,13.6775594,148.71,148.68,8.40331904]
[1641458301947,13.6775594,148.71,148.64,56.93261036]
[1641458302546,6.7251757,148.65,148.64,56.93261036]
[1641458302747,6.122,148.65,148.64,56.93261036]
[1641458303552,26.19181949,148.67,148.64,56.93261036]
[1641458303749,5.95,148.65,148.64,56.93261036]
[1641458304449,4.0,148.69,148.64,56.93261036]
[1641458304653,4.0,148.69,148.6,56.93261036]
[1641458304851,8.74815728,148.72,148.6,56.93261036]
[1641458305052,4.0,148.71,148.69,27.66479]
[1641458305253,4.74815728,148.72,148.67,27.66479]
[1641458305653,4.0,148.77,148.67,27.66479]
[1641458306055,4.74723687,148.76,148.7,8.1457301]
[1641458306454,4.74723687,148.76,148.71,4.0]
[1641458306653,41.82102914,148.83,148.71,4.0]
[1641458306865,37.82102914,148.83,148.73,6.71253566]
[1641458307053,4.0,148.85,148.82,27.66479]
[1641458307256,4.74500181,148.83,148.82,5.749]
[1641458307454,4.0,148.89,148.82,5.749]
[1641458307653,41.96001444,148.9,148.82,5.749]
[1641458307853,37.96001444,148.9,148.82,5.749]
[1641458308455,84.50830708,148.94,148.82,5.749]
[1641458308655,27.66479,148.94,148.84,4.0]
[1641458308854,27.66479,148.94,148.83,1.35405223]
[1641458309057,4.0,148.96,148.88,27.66479]
[1641458309458,27.66479,148.97,148.88,27.66479]
[1641458309657,34.373948,148.97,148.88,27.66479]
[1641458309857,6.70983326,148.96,148.83,67.91935223]
[1641458310057,10.710959,148.93,148.89,1.35405223]
[1641458310258,6.71298627,148.9,148.89,1.35405223]
[1641458310458,4.0,148.9,148.8,56.93261036]
[1641458310661,4.0,148.86,148.8,56.93261036]
[1641458310857,4.0,148.84,148.8,56.93261036]
[1641458311059,4.0,148.84,148.76,91.96559]
[1641458311657,27.66479,148.86,148.76,91.96559]
[1641458311859,27.66479,148.86,148.76,95.96559]
[1641458312057,27.66479,148.86,148.78,4.0]
[1641458312459,27.66479,148.86,148.77,10.78272377]
[1641458312659,6.71433847,148.9,148.78,4.0]
[1641458312858,6.71118419,148.93,148.78,10.595]
[1641458313060,34.37597419,148.93,148.83,27.66479]
[1641458313258,34.37597419,148.93,148.83,32.58879]
[1641458313662,6.71185986,148.91,148.83,32.58879]
[1641458314064,6.71185986,148.91,148.83,27.66479]
[1641458314562,4.0,148.9,148.83,27.66479]
[1641458314764,4.0,148.89,148.83,27.66479]
[1641458315062,27.66479,148.9,148.83,27.66479]
[1641458315262,12.18814156,148.92,148.83,27.66479]
[1641458316062,6.71253566,148.9,148.83,27.66479]
[1641458317064,16.93514156,148.92,148.83,27.66479]
[1641458317265,12.18814156,148.92,148.83,27.66479]
[1641458317466,12.18814156,148.92,148.83,32.37179]
[1641458317868,6.71231038,148.9,148.83,32.37179]
[1641458318265,12.18814156,148.92,148.83,32.37179]
[1641458318666,18.89955096,148.92,148.83,32.37179]
[1641458318967,18.89955096,148.92,148.83,32.54379]
[1641458319168,12.18814156,148.92,148.83,32.54379]
[1641458320068,12.18814156,148.92,148.83,27.66479]
[1641458320271,12.18814156,148.92,148.84,6.78262981]
[1641458320569,6.71253566,148.9,148.84,6.78262981]
[1641458321171,6.71253566,148.9,148.83,6.78262981]
[1641458321578,4.0,148.89,148.83,6.78262981]
[1641458321773,11.141,148.89,148.83,6.78262981]
[1641458321969,7.141,148.89,148.83,6.78262981]
[1641458322572,4.0,148.87,148.83,6.78262981]
[1641458323172,27.66479,148.84,148.83,6.78262981]
[1641458323372,32.97479,148.84,148.83,6.78262981]
[1641458323572,32.97479,148.84,148.75,81.41209735]
[1641458324473,32.97479,148.84,148.75,70.22362981]
[1641458324674,32.97479,148.84,148.76,6.78262981]
[1641458324875,6.71276096,148.89,148.76,13.14162981]
[1641458325075,27.66479,148.88,148.79,27.66479]
[1641458325275,27.66479,148.88,148.79,33.82779]
[1641458325676,27.66479,148.88,148.8,6.78262981]
[1641458326275,27.66479,148.88,148.81,4.0]
[1641458326576,27.66479,148.88,148.8,6.78262981]
[1641458326978,27.66479,148.88,148.81,4.0]
[1641458327178,27.66479,148.88,148.82,27.66479]
[1641458329181,31.66479,148.88,148.74,66.4327]
[1641458329381,6.71456389,148.85,148.74,66.4327]
[1641458329580,11.96356389,148.85,148.74,66.4327]
[1641458329781,11.96356389,148.85,148.76,6.7827454]
[1641458329980,11.96356389,148.85,148.76,17.9706037]
[1641458330583,6.71636779,148.81,148.76,17.9706037]
[1641458330784,13.11036779,148.81,148.76,6.7827454]
[1641458331185,27.66479,148.79,148.76,6.7827454]
[1641458332685,27.66479,148.79,148.72,6.7827454]
[1641458333085,27.66479,148.79,148.75,4.0]
[1641458333285,27.66479,148.81,148.73,27.66479]
[1641458333485,27.66479,148.81,148.75,4.0]
[1641458333685,27.66479,148.81,148.73,31.66479]
[1641458334786,27.66479,148.81,148.73,27.66479]
[1641458334986,32.42979,148.81,148.74,6.7827454]
[1641458335886,27.66479,148.81,148.75,4.0]
[1641458336087,6.71614225,148.82,148.74,15.6307454]
[1641458336488,6.71478932,148.85,148.74,11.6307454]
[1641458336687,6.71478932,148.85,148.75,4.0]
[1641458337088,6.71478932,148.85,148.74,6.7827454]
[1641458337288,39.66657932,148.85,148.74,6.7827454]
[1641458337688,32.95179,148.85,148.74,6.7827454]
[1641458338087,32.95179,148.85,148.74,10.7827454]
[1641458338888,32.95179,148.85,148.77,4.0]
[1641458340092,32.95179,148.85,148.76,31.66479]
[1641458340291,32.95179,148.85,148.76,27.66479]
[1641458340693,6.71501477,148.84,148.76,27.66479]
[1641458340892,32.95179,148.85,148.76,27.66479]
[1641458341091,27.66479,148.85,148.76,27.66479]
[1641458341293,27.66479,148.85,148.77,6.7827454]
[1641458342295,27.66479,148.85,148.77,11.3727454]
[1641458342693,27.66479,148.85,148.77,15.3727454]
[1641458343095,27.66479,148.85,148.77,11.3727454]
[1641458343297,27.66479,148.85,148.77,15.3727454]
[1641458343696,27.66479,148.85,148.77,4.59]
[1641458343895,27.66479,148.85,148.76,4.0]
[1641458344297,27.66479,148.85,148.75,4.0]
[1641458344697,27.66479,148.85,148.78,4.0]
[1641458344899,27.66479,148.87,148.79,4.0]
[1641458345298,27.66479,148.87,148.81,4.0]
[1641458345497,27.66479,148.87,148.81,7.069]
[1641458346899,27.66479,148.87,148.79,65.4434]
[1641458347301,27.66479,148.83,148.79,65.4434]
[1641458347502,27.66479,148.83,148.77,71.7903]
[1641458347801,27.66479,148.83,148.8,6.7827454]
[1641458348200,6.71253566,148.9,148.8,14.0207454]
[1641458348600,6.71253566,148.9,148.8,7.238]
[1641458348800,10.71253566,148.9,148.8,7.238]
[1641458349000,6.7136623,148.87,148.8,7.238]
[1641458349202,27.66479,148.87,148.8,7.238]
[1641458349401,27.66479,148.87,148.76,17.97077252]
[1641458350705,27.66479,148.87,148.76,21.97077252]
[1641458350905,3.38603271,148.86,148.76,19.32841558]
[1641458351108,3.38603271,148.86,148.76,23.32841558]
[1641458351307,3.38603271,148.86,148.76,46.99320558]
[1641458351505,3.38603271,148.86,148.81,4.0]
[1641458351706,3.38603271,148.86,148.81,9.856]
[1641458352508,3.38603271,148.86,148.83,4.0]
[1641458352707,37.93824027,148.9,148.83,4.0]
[1641458352907,63.55357546,148.95,148.88,4.0]
[1641458353107,63.55357546,148.95,148.88,9.847]
[1641458353308,56.84351708,148.95,148.88,9.847]
[1641458353509,56.84351708,148.95,148.89,4.0]
[1641458353910,179.40834319,148.99,148.88,5.847]
[1641458354110,84.50830708,148.99,148.88,5.847]
[1641458354309,84.50830708,148.99,148.88,9.847]
[1641458354910,56.84351708,148.99,148.89,4.0]
[1641458355310,56.84351708,148.99,148.91,31.66479]
[1641458355511,12.17389429,148.98,148.92,4.0]
[1641458356211,12.17389429,148.98,148.91,36.31779]
[1641458356411,12.17389429,148.98,148.91,32.31779]
[1641458356611,12.17389429,148.98,148.89,91.67809]
[1641458357013,12.17389429,149.01,148.92,6.7827454]
[1641458357815,4.0,149.0,148.92,6.7827454]
[1641458358014,22.88147721,149.01,148.92,6.7827454]
[1641458358214,22.88147721,149.01,148.9,6.7827454]
[1641458358415,4.0,149.0,148.9,6.7827454]
[1641458358614,18.88147721,149.01,148.9,6.7827454]
[1641458359015,12.17389429,149.01,148.9,10.7827454]
[1641458359215,4.0,149.0,148.89,125.18788]
[1641458359515,4.0,149.0,148.89,97.52309]
[1641458359817,29.42117069,149.01,148.89,97.52309]
[1641458360015,29.42117069,149.01,148.91,4.0]
[1641458360217,29.42117069,149.01,148.93,4.0]
[1641458360419,29.42117069,149.01,148.93,9.273]
[1641458360615,29.42117069,149.01,148.93,5.273]
[1641458361317,12.17389429,149.01,148.95,27.66479]
[1641458362317,6.70555891,149.05,148.95,27.66479]
[1641458362518,6.70555891,149.05,148.95,94.68109]
[1641458362716,6.70555891,149.05,148.95,98.68109]
[1641458362921,86.25784124,149.07,148.95,98.68109]
[1641458363118,86.25784124,149.07,148.97,4.0]
[1641458363322,86.25784124,149.07,149.01,27.66479]
[1641458363520,86.25784124,149.07,149.01,34.75279]
[1641458364120,86.25784124,149.07,149.01,27.17121978]
[1641458364620,86.25784124,149.07,149.01,20.08321978]
[1641458365221,18.87787981,149.09,149.01,20.08321978]
[1641458366221,12.17389429,149.09,149.01,24.91621978]
[1641458366421,29.41432416,149.09,149.01,24.91621978]
[1641458367222,12.17389429,149.09,149.01,28.91621978]
[1641458367422,12.17389429,149.09,149.01,56.58100978]
[1641458367622,12.17389429,149.09,149.01,52.58100978]
[1641458368223,12.17389429,149.09,149.01,20.08321978]
[1641458368624,6.70421024,149.08,149.01,20.08321978]
[1641458368823,4.73631403,149.03,149.01,20.08321978]
[1641458369027,6.70308677,149.11,149.01,20.08321978]
[1641458369226,12.17389429,149.12,149.01,29.89121978]
[1641458369524,12.17389429,149.12,149.02,4.0]
[1641458369726,12.17389429,149.12,149.02,67.2703]
[1641458370525,12.17389429,149.12,149.02,63.2703]
[1641458370926,4.0,149.1,149.01,20.08321978]
[1641458371124,6.70308677,149.11,149.01,20.08321978]
[1641458371325,22.41289429,149.12,149.01,20.08321978]
[1641458371525,6.70421024,149.08,149.01,20.08321978]
[1641458371725,10.70331144,149.1,149.01,20.08321978]
[1641458372327,63.54682852,149.1,149.01,20.08321978]
[1641458373129,56.84351708,149.1,149.01,20.08321978]
[1641458373928,37.89272075,149.09,149.01,20.08321978]
[1641458374528,37.89272075,149.09,148.99,63.2421]
[1641458374928,6.70421024,149.08,148.99,63.2421]
[1641458375330,37.89272075,149.07,148.99,63.2421]
[1641458375529,37.89272075,149.07,149.01,27.66479]
[1641458377030,37.89272075,149.07,148.99,63.2421]
[1641458377232,4.0,149.06,148.98,64.2696]
[1641458377432,27.66479,149.03,148.97,27.66479]
[1641458377631,27.66479,149.03,148.94,68.4568]
[1641458377632,33.52679,149.03,148.94,68.4568]
[1641458378432,37.52679,149.03,148.94,68.4568]
[1641458379033,12.17389429,149.02,148.93,27.66479]
[1641458379438,12.17389429,149.02,148.91,66.7405]
[1641458379637,4.0,149.0,148.92,66.2]
[1641458379937,10.70758292,149.01,148.92,66.2]
[1641458380138,6.70758292,149.01,148.92,66.2]
[1641458380337,37.89272075,148.99,148.92,66.2]
[1641458381838,37.89272075,149.0,148.92,66.2]
[1641458382441,37.89272075,149.0,148.92,70.733]
[1641458383341,37.89272075,149.0,148.92,74.733]
[1641458383541,37.89272075,149.0,148.95,27.66479]
[1641458383941,12.17389429,149.02,148.95,27.66479]
[1641458384741,27.66479,149.03,148.95,27.66479]
[1641458385345,128.89272075,149.05,148.95,33.36779]
[1641458385542,37.89272075,149.05,148.95,61.03258]
[1641458385944,37.89272075,149.07,148.95,61.03258]
[1641458386842,27.66479,149.08,148.95,65.03258]
[1641458387044,27.66479,149.08,148.96,4.0]
[1641458387443,44.59625687,149.1,148.99,27.66479]
[1641458387644,44.59625687,149.1,149.0,64.5612]
[1641458387844,44.59603219,149.1,149.0,64.5612]
[1641458388448,6.70331144,149.1,149.0,64.5612]
[1641458388649,10.70331144,149.1,149.0,64.5612]
[1641458389448,22.81506668,149.1,149.0,64.5612]
[1641458389649,4.0,149.09,149.0,64.5612]
[1641458389849,22.81506668,149.1,149.0,64.5612]
[1641458390252,4.0,149.08,149.0,64.5612]
[1641458390451,6.70510929,149.06,149.0,64.5612]
[1641458390651,6.70510929,149.06,148.99,27.66479]
[1641458390851,4.0,149.08,148.99,27.66479]
[1641458392355,4.0,149.07,148.99,27.66479]
[1641458392655,6.70510929,149.06,148.97,129.8894]
[1641458392853,6.70510929,149.06,148.97,62.5433]
[1641458393255,10.06795815,149.06,148.97,62.5433]
[1641458393657,37.73274815,149.06,148.97,62.5433]
[1641458394255,41.73274815,149.06,148.97,62.5433]
[1641458394456,19.4746041,149.05,148.95,27.66479]
[1641458394756,4.0,149.04,148.95,27.66479]
[1641458394955,6.70713304,149.02,148.95,27.66479]
[1641458395156,10.70713304,149.02,148.95,27.66479]
[1641458395357,4.0,149.01,148.95,27.66479]
[1641458395557,5.49,149.01,148.95,27.66479]
[1641458396159,31.02763886,149.03,148.95,27.66479]
[1641458396358,31.02763886,149.03,148.95,32.76779]
[1641458396959,3.36284886,149.0,148.95,32.76779]
[1641458398159,3.36284886,149.01,148.95,32.76779]
[1641458399560,3.36284886,149.02,148.95,32.76779]
[1641458400059,3.36284886,149.02,148.96,4.0]
[1641458400461,37.89272075,149.05,148.97,4.0]
[1641458400661,37.89272075,149.09,148.97,4.0]
[1641458401261,4.0,149.08,148.96,1.35690463]
[1641458401463,55.86148156,149.09,148.96,1.35690463]
[1641458401663,6.70533409,149.06,148.98,1.35690463]
[1641458401862,11.97433409,149.06,148.98,1.35690463]
[1641458402562,15.97433409,149.06,148.98,1.35690463]
[1641458402761,11.97433409,149.06,148.98,1.35690463]
[1641458402962,6.70645832,149.03,148.96,1.35690463]
[1641458403362,16.64445832,149.03,148.96,1.35690463]
[1641458403562,4.0,149.01,148.95,27.66479]
[1641458403762,7.36178474,149.02,148.95,27.66479]
[1641458404163,4.0,149.0,148.95,27.66479]
[1641458404365,9.683,149.0,148.9,64.4893]
[1641458404566,4.0,148.99,148.9,64.4893]
[1641458404965,4.0,148.98,148.9,64.4893]
[1641458405166,4.0,148.99,148.9,64.4893]
[1641458405366,5.683,149.0,148.9,64.4893]
[1641458405566,3.36178474,149.01,148.93,27.66479]
[1641458406668,3.36178474,149.02,148.94,1.35687751]
[1641458406967,7.36178474,149.02,148.94,1.35687751]
[1641458407169,3.36178474,149.02,148.94,1.35687751]
[1641458407468,4.0,149.01,148.94,1.35687751]
[1641458407669,27.66479,148.98,148.94,1.35687751]
[1641458407869,37.27479,148.98,148.91,27.66479]
[1641458408070,33.27479,148.98,148.91,27.66479]
[1641458408770,5.61,148.98,148.91,27.66479]
[1641458408971,10.06914271,149.01,148.91,27.66479]
[1641458409172,3.36178474,148.97,148.91,34.22779]
[1641458410575,10.06914271,149.01,148.92,1.35677589]
[1641458411180,14.06914271,149.01,148.92,1.35677589]
[1641458411378,3.36178474,149.0,148.92,1.35677589]
[1641458411576,7.36178474,149.0,148.92,1.35677589]
[1641458411775,35.02657474,149.0,148.92,1.35677589]
[1641458411976,31.02657474,149.0,148.92,1.35677589]
[1641458412178,3.36178474,148.99,148.92,1.35677589]
[1641458412976,3.36178474,148.99,148.92,5.35677589]
[1641458413577,3.36178474,148.99,148.93,4.0]
[1641458413780,3.36178474,148.99,148.95,27.66479]
[1641458414180,37.89272075,149.01,148.95,27.66479]
[1641458414181,53.37246729,149.04,148.95,27.66479]
[1641458414477,60.07847587,149.04,148.95,27.66479]
[1641458414677,4.0,149.03,148.95,27.66479]
[1641458414877,4.0,149.03,148.96,1.35677589]
[1641458415477,22.18575512,149.04,148.96,1.35677589]
[1641458415678,31.66479,149.03,148.96,1.35677589]
[1641458415880,3.36178474,149.02,148.96,1.35677589]
[1641458416978,3.36178474,149.02,148.96,5.35677589]
[1641458417383,91.0,149.05,148.98,4.0]
[1641458417678,37.89272075,149.07,149.02,27.66479]
[1641458417878,37.89272075,149.07,149.02,32.76479]
[1641458418079,31.84351708,149.11,149.02,32.76479]
[1641458418280,31.84351708,149.11,149.08,4.0]
[1641458418480,1.708e-05,149.11,149.08,9.625]
[1641458418679,1.708e-05,149.11,149.08,5.625]
[1641458419080,37.89324242,149.12,149.08,5.625]
[1641458419283,37.89324242,149.12,149.08,9.625]
[1641458419480,37.89324242,149.12,149.09,4.0]
[1641458419481,4.242e-05,149.12,149.09,4.0]
[1641458419681,4.242e-05,149.12,149.11,55.32958]
[1641458419980,4.242e-05,149.12,149.11,60.38958]
[1641458420180,94.90003611,149.2,149.11,60.38958]
[1641458420581,10.69859664,149.21,149.11,60.38958]
[1641458420781,6.69859664,149.21,149.11,60.38958]
[1641458422681,10.69859664,149.21,149.11,60.38958]
[1641458422981,6.69859664,149.21,149.11,60.38958]
[1641458423581,6.69747505,149.23,149.11,60.38958]
[1641458424082,6.69747505,149.23,149.11,52.81497878]
[1641458424682,39.33887701,149.24,149.14,4.0]
[1641458424881,39.33887701,149.24,149.14,7.11]
[1641458425080,39.33887701,149.24,149.14,11.11]
[1641458425281,39.33887701,149.24,149.14,7.11]
[1641458425481,17.2010489,149.24,149.14,7.11]
[1641458425682,17.2010489,149.24,149.16,27.66479]
[1641458426081,6.69792364,149.22,149.16,27.66479]
[1641458426283,11.23992364,149.22,149.16,27.66479]
[1641458427084,4.542,149.22,149.16,27.66479]
[1641458427286,17.2010489,149.24,149.16,27.66479]
[1641458427484,39.31424253,149.24,149.16,27.66479]
[1641458427685,66.97903253,149.24,149.16,27.66479]
[1641458428484,44.8658389,149.24,149.16,27.66479]
[1641458429686,44.8658389,149.24,149.15,5.907]
[1641458430688,44.8658389,149.24,149.16,4.0]
[1641458430888,44.8658389,149.24,149.15,9.907]
[1641458431088,17.2010489,149.24,149.16,4.0]
[1641458431288,17.2010489,149.24,149.15,9.907]
[1641458431489,17.2010489,149.26,149.15,5.907]
[1641458431687,17.2010489,149.26,149.15,9.907]
[1641458431888,17.2010489,149.26,149.19,27.66479]
[1641458432490,27.66479,149.27,149.19,27.66479]
[1641458432689,31.66479,149.27,149.19,27.66479]
[1641458432888,27.66479,149.27,149.19,27.66479]
[1641458435093,84.45351065,149.27,149.19,27.66479]
[1641458435793,112.11830065,149.27,149.19,27.66479]
[1641458436095,129.31934955,149.27,149.19,27.66479]
[1641458436495,6.69635384,149.26,149.19,27.66479]
[1641458436696,4.0,149.25,149.19,27.66479]
[1641458436996,6.69635384,149.26,149.19,27.66479]
[1641458437195,23.89740274,149.26,149.19,27.66479]
[1641458437796,27.66479,149.24,149.19,27.66479]
[1641458438196,27.66479,149.24,149.16,4.579]
[1641458439097,27.66479,149.24,149.14,31.66479]
[1641458439497,12.10985425,149.23,149.14,31.66479]
[1641458439698,12.10985425,149.23,149.14,27.66479]
[1641458439899,18.68185425,149.23,149.14,27.66479]
[1641458440897,12.10985425,149.23,149.14,27.66479]
[1641458441299,37.86307921,149.19,149.14,27.66479]
[1641458445605,37.86307921,149.21,149.14,27.66479]
[1641458445805,65.52786921,149.21,149.14,32.69479]
[1641458446608,12.10985425,149.2,149.14,32.69479]
[1641458447408,12.10985425,149.2,149.14,27.66479]
[1641458447609,17.70985425,149.2,149.09,68.4488]
[1641458447808,27.66479,149.18,149.09,96.11359]
[1641458448008,27.66479,149.18,149.09,27.66479]
[1641458448410,12.10985425,149.2,149.09,31.66479]
[1641458448611,12.10985425,149.2,149.1,65.4337]
[1641458448810,4.73325605,149.12,149.1,65.4337]
[1641458449010,4.73325605,149.12,149.09,27.66479]
[1641458449414,4.73325605,149.12,149.05,63.2934]
[1641458449612,4.73325605,149.12,149.04,5.259]
[1641458450010,4.73325605,149.12,149.05,27.66479]
[1641458450613,4.73325605,149.09,149.05,27.66479]
[1641458450814,4.73325605,149.09,149.03,6.81835435]
[1641458451512,4.73325605,149.09,149.02,69.1443]
[1641458451713,4.73325605,149.06,149.02,69.1443]
[1641458451913,4.73325605,149.06,149.02,27.66479]
[1641458452213,4.73325605,149.06,149.02,31.66479]
[1641458452413,27.66479,149.11,149.03,4.0]
[1641458452614,4.73548143,149.05,149.03,8.57]
[1641458453013,12.10985425,149.1,149.03,8.57]
[1641458453215,12.10985425,149.1,149.04,4.0]
[1641458453915,49.97293346,149.15,149.05,27.66479]
[1641458454316,49.97293346,149.15,149.05,31.66479]
[1641458454719,49.97293346,149.15,149.05,27.66479]
[1641458454916,12.10985425,149.15,149.06,10.81917961]
[1641458455117,12.10985425,149.15,149.07,4.0]
[1641458455918,12.10985425,149.15,149.09,27.66479]
[1641458456117,12.10985425,149.15,149.09,33.61279]
[1641458456718,49.97293346,149.18,149.09,33.61279]
[1641458457417,49.97293346,149.18,149.09,37.61279]
[1641458457618,49.97293346,149.18,149.09,33.61279]
[1641458457819,15.46900729,149.18,149.1,1.3741121]
[1641458459520,53.3320865,149.18,149.1,1.3741121]
[1641458460424,15.46900729,149.18,149.1,5.3741121]
[1641458460621,15.46900729,149.18,149.11,4.0]
[1641458460821,15.46900729,149.18,149.11,11.019]
[1641458461021,15.46900729,149.18,149.11,7.019]
[1641458461222,15.46900729,149.18,149.12,1.3741121]
[1641458462021,15.46900729,149.18,149.15,4.0]
[1641458462223,15.46900729,149.18,149.15,9.014]
[1641458462721,15.46900729,149.18,149.15,5.014]
[1641458462923,53.3320865,149.2,149.15,5.014]
[1641458463323,53.3320865,149.2,149.12,63.7244]
[1641458463525,60.3800865,149.2,149.12,63.7244]
[1641458464126,27.66479,149.18,149.09,27.66479]
[1641458464325,27.66479,149.18,149.09,94.07239]
[1641458464727,65.52786921,149.18,149.09,98.07239]
[1641458464926,65.52786921,149.18,149.09,94.07239]
[1641458465526,65.52786921,149.18,149.09,98.07239]
[1641458465728,15.46900729,149.17,149.1,5.3741751]
[1641458466327,15.46900729,149.17,149.1,1.3741751]
[1641458466528,15.46900729,149.17,149.1,5.3741751]
[1641458466727,53.3320865,149.2,149.11,1.3741751]
[1641458466927,37.86307921,149.19,149.11,1.3741751]
[1641458468028,37.86307921,149.19,149.16,4.0]
[1641458468230,53.3320865,149.2,149.16,6.089]
[1641458469030,53.3320865,149.24,149.17,1.3741751]
[1641458470131,37.86307921,149.24,149.17,1.3741751]
[1641458470831,37.86307921,149.24,149.17,6.9961751]
[1641458471634,44.56032999,149.24,149.17,1.3741751]
[1641458471833,48.56032999,149.24,149.17,1.3741751]
[1641458472034,31.66479,149.22,149.18,1.3741751]
[1641458472232,4.0,149.21,149.18,1.3741751]
[1641458472433,6.69859664,149.21,149.11,27.66479]
[1641458472637,34.36293796,149.22,149.11,27.66479]
[1641458472833,38.36293796,149.22,149.11,27.66479]
[1641458473033,34.36293796,149.22,149.11,27.66479]
[1641458473234,49.97293346,149.21,149.11,27.66479]
[1641458474036,12.10985425,149.21,149.11,27.66479]
[1641458474835,49.97293346,149.21,149.11,27.66479]
[1641458475236,4.0,149.19,149.1,66.0548]
[1641458475834,4.0,149.19,149.06,63.264]
[1641458476035,4.0,149.19,149.07,63.7778]
[1641458476238,27.66479,149.17,149.08,27.66479]